bitfinex/quotes_ETHUSD_20230831
["timestamp","ask_amount","ask_price","bid_price","bid_amount"]
[1693500728949,3.0,1664.7,1664.1,9.0737433]
[1693500729151,3.0,1664.7,1664.1,6.146]
[1693500729323,5.9277433,1664.7,1664.1,6.146]
[1693500729519,0.59277433,1664.6,1664.1,6.146]
[1693500729753,3.0,1664.5,1664.0,3.0]
[1693500729961,3.0,1664.5,1663.8,4.21905337]
[1693500730143,3.0,1664.5,1663.9,0.48]
[1693500730943,0.002,1664.4,1663.9,0.48]
[1693500732260,0.002,1664.4,1663.9,3.4077433]
[1693500732454,3.0,1664.9,1664.1,6.146]
[1693500732682,3.0,1664.9,1664.2,6.4077433]
[1693500733733,3.0,1664.6,1664.2,3.0]
[1693500733938,2.9277433,1664.5,1663.8,0.014]
[1693500734139,3.0,1664.2,1663.8,0.014]
[1693500734334,3.0,1664.4,1663.8,0.014]
[1693500734749,3.0,1664.6,1663.8,0.014]
[1693500734970,3.0,1664.4,1663.8,1.22245337]
[1693500735274,3.0,1665.0,1663.8,1.22245337]
[1693500735567,3.0,1664.8,1664.1,6.146]
[1693500735868,0.002,1664.7,1664.2,3.48]
[1693500736044,0.002,1664.7,1664.2,3.0]
[1693500736451,3.002,1664.7,1664.2,3.0]
[1693500736657,0.002,1664.6,1664.2,3.0]
[1693500736884,0.002,1664.7,1664.3,3.4077433]
[1693500737031,0.002,1664.7,1664.2,6.8423433]
[1693500737635,0.002,1664.7,1664.3,3.4077433]
[1693500738061,0.002,1664.9,1664.3,3.4077433]
[1693500738246,0.002,1664.9,1664.3,4.76317763]
[1693500738771,3.0,1664.8,1664.3,4.76317763]
[1693500738967,0.002,1664.7,1664.3,4.76317763]
[1693500739172,0.002,1664.7,1664.2,3.0]
[1693500739346,0.002,1664.7,1664.2,5.9277433]
[1693500739550,0.002,1664.7,1664.3,3.4077433]
[1693500739743,3.0,1665.0,1664.3,3.4077433]
[1693500739744,0.002,1664.9,1664.3,3.4077433]
[1693500739949,0.002,1664.9,1664.3,4.67171763]
[1693500740146,3.0,1664.8,1664.3,3.4077433]
[1693500740351,0.002,1664.7,1664.2,3.0]
[1693500740675,0.002,1664.7,1664.2,5.9277433]
[1693500741581,0.002,1664.9,1664.3,3.4077433]
[1693500741748,0.002,1664.9,1664.3,9.6397433]
[1693500742076,0.002,1665.1,1664.4,3.96397433]
[1693500742280,0.002,1665.1,1664.5,3.4077433]
[1693500742645,3.0,1665.0,1664.5,3.4077433]
[1693500742849,0.002,1664.9,1664.5,3.4077433]
[1693500743854,0.002,1664.9,1664.4,3.96397433]
[1693500744060,0.002,1664.9,1664.5,3.0]
[1693500744468,0.002,1664.9,1664.6,2.9277433]
[1693500744775,0.002,1665.1,1664.6,3.4077433]
[1693500745370,3.0,1664.9,1664.6,0.48]
[1693500745675,3.002,1664.9,1664.5,9.146]
[1693500745840,0.002,1664.8,1664.5,12.0737433]
[1693500746654,0.002,1664.8,1664.1,6.146]
[1693500746855,3.0,1664.7,1664.2,3.0]
[1693500747064,3.002,1664.6,1664.2,3.0]
[1693500747272,0.002,1664.5,1664.2,3.0]
[1693500748069,0.002,1664.5,1664.0,0.47773185]
[1693500748386,0.002,1664.5,1663.8,1.40819774]
[1693500748387,0.002,1664.5,1663.8,1.2306]
[1693500748688,0.002,1664.5,1663.9,3.53619667]
[1693500748849,0.002,1664.5,1664.0,0.35361967]
[1693500749049,0.002,1664.5,1663.9,3.52019667]
[1693500749050,0.002,1664.5,1663.9,2.9277433]
[1693500749279,0.002,1664.5,1664.0,3.0]
[1693500749963,0.002,1664.5,1663.8,0.50313599]
[1693500749964,3.0,1664.2,1663.8,0.50313599]
[1693500750165,3.0,1664.2,1663.9,0.016]
[1693500750366,3.0,1664.2,1663.4,0.016]
[1693500750563,3.0,1664.2,1663.5,2.9277433]
[1693500750773,3.0,1664.2,1663.6,0.016]
[1693500751071,3.0,1664.2,1663.6,3.53619667]
[1693500751271,3.0,1664.2,1663.7,0.016]
[1693500751475,5.9277433,1664.2,1663.5,0.016]
[1693500751652,3.0,1664.2,1663.5,3.37274783]
[1693500751850,3.0,1664.2,1663.6,3.016]
[1693500752047,3.0,1663.8,1663.7,0.016]
[1693500752254,3.0,1663.8,1663.5,0.016]
[1693500752753,3.0,1664.1,1663.5,0.016]
[1693500752954,3.0,1664.1,1663.5,3.3220433]
[1693500753178,3.0,1664.1,1663.7,3.767]
[1693500753385,3.0,1664.1,1663.8,0.016]
[1693500756687,3.0,1663.9,1663.8,0.016]
[1693500756860,3.0,1663.9,1663.5,0.016]
[1693500757282,3.0,1664.1,1663.7,3.767]
[1693500757483,3.0,1664.1,1663.8,0.016]
[1693500758117,3.0,1664.4,1663.8,0.016]
[1693500758260,0.002,1664.3,1663.8,0.016]
[1693500758458,0.002,1664.3,1663.8,3.3220433]
[1693500758692,0.002,1664.3,1664.0,3.767]
[1693500758859,0.002,1664.5,1664.0,6.6947433]
[1693500759063,0.002,1664.5,1664.0,7.28719667]
[1693500759875,0.002,1664.5,1664.3,3.767]
[1693500760075,3.002,1664.6,1664.3,3.767]
[1693500760666,3.002,1664.6,1664.3,4.1437]
[1693500760667,0.002,1664.6,1664.3,4.1437]
[1693500761000,3.60565509,1664.8,1664.4,2.9277433]
[1693500761001,0.002,1664.7,1664.4,2.9277433]
[1693500761213,0.002,1664.7,1664.4,3.4077433]
[1693500762187,0.60565509,1665.1,1664.6,3.767]
[1693500762528,4.51413772,1665.3,1664.7,3.0]
[1693500762979,3.60565509,1665.3,1664.7,3.0]
[1693500763566,0.60565509,1665.2,1664.7,3.0]
[1693500763965,4.51413772,1665.3,1664.7,3.0]
[1693500764800,24.024,1665.2,1664.7,3.0]
[1693500765187,24.62965509,1665.2,1664.7,3.0]
[1693500765387,0.002,1665.1,1664.7,3.0]
[1693500765697,12.012,1665.0,1664.7,4.00714433]
[1693500766070,12.014,1665.0,1664.7,4.00714433]
[1693500766269,15.014,1665.0,1664.6,3.767]
[1693500766487,0.002,1664.9,1664.6,3.767]
[1693500767190,0.002,1664.9,1664.6,6.6947433]
[1693500769004,3.0,1664.8,1664.5,0.47343825]
[1693500769302,3.002,1664.8,1664.3,3.767]
[1693500769618,3.002,1664.8,1664.2,0.48436296]
[1693500769619,0.002,1664.7,1664.6,3.767]
[1693500769813,12.012,1665.0,1664.6,3.767]
[1693500770110,12.012,1665.2,1664.9,3.767]
[1693500770497,3.0,1665.2,1664.9,3.767]
[1693500770704,3.0,1665.2,1664.7,3.0]
[1693500770897,12.012,1665.1,1664.7,3.0]
[1693500772021,3.0,1664.8,1664.6,3.767]
[1693500772218,12.012,1664.7,1664.6,3.767]
[1693500772380,12.012,1664.7,1664.3,3.767]
[1693500772579,12.012,1664.7,1664.3,6.6947433]
[1693500772880,0.002,1664.6,1664.3,6.6947433]
[1693500773081,3.0,1665.0,1664.4,3.59721763]
[1693500773082,12.012,1664.5,1664.4,3.59721763]
[1693500773298,3.0,1665.0,1664.4,10.36421763]
[1693500773585,3.0,1665.0,1664.5,3.0]
[1693500773778,3.0,1665.0,1664.7,3.767]
[1693500774180,3.60565509,1665.2,1664.8,2.9277433]
[1693500774379,3.0,1665.2,1664.8,2.9277433]
[1693500776015,0.002,1665.1,1664.8,2.9277433]
[1693500777286,0.002,1665.1,1665.0,6.016]
[1693500777487,3.0,1665.2,1665.0,3.008]
[1693500777983,3.0,1665.2,1665.0,5.9357433]
[1693500778312,3.0,1665.2,1665.0,6.52931763]
[1693500778516,3.0,1665.2,1665.0,3.008]
[1693500778917,3.0,1665.2,1665.0,5.9357433]
[1693500779121,0.002,1665.3,1665.0,5.9357433]
[1693500779301,3.0,1665.3,1665.2,3.008]
[1693500779666,0.002,1665.5,1665.2,3.008]
[1693500779803,0.002,1665.5,1665.4,3.008]
[1693500780155,3.101,1665.6,1665.4,3.008]
[1693500780300,3.0,1665.1,1664.8,3.03]
[1693500780634,3.0,1665.1,1664.8,3.52095805]
[1693500780787,3.0,1665.4,1664.8,3.52095805]
[1693500780989,3.002,1665.3,1665.2,3.008]
[1693500781323,3.002,1665.5,1665.2,3.008]
[1693500781704,3.0,1665.3,1665.2,3.008]
[1693500781901,3.60765509,1665.5,1664.8,0.51295805]
[1693500782104,3.0,1665.1,1664.9,0.022]
[1693500782330,3.0,1665.1,1664.8,3.52095805]
[1693500782523,3.0,1665.3,1664.8,3.52095805]
[1693500782723,3.0,1665.3,1665.0,3.008]
[1693500783011,0.002,1665.5,1665.2,3.008]
[1693500783232,0.002,1665.5,1665.4,3.008]
[1693500783404,3.101,1665.6,1665.4,3.008]
[1693500786330,3.101,1665.6,1665.2,3.008]
[1693500786623,0.002,1665.5,1665.2,3.008]
[1693500787146,0.002,1665.5,1665.4,3.008]
[1693500787341,3.101,1665.6,1665.4,3.60157433]
[1693500787539,3.101,1665.6,1665.4,3.008]
[1693500788812,3.101,1665.6,1665.2,3.008]
[1693500789052,0.002,1665.5,1665.2,3.008]
[1693500790244,3.0,1665.4,1665.2,3.008]
[1693500790444,3.0,1665.4,1665.2,6.2841801]
[1693500790621,0.002,1665.5,1665.2,6.2841801]
[1693500790821,0.002,1665.5,1665.4,3.008]
[1693500791031,3.101,1665.6,1665.4,3.008]
[1693500791230,0.101,1665.6,1665.4,5.9357433]
[1693500791428,0.101,1665.6,1665.5,3.60157433]
[1693500791658,0.101,1665.6,1665.5,0.59357433]
[1693500793156,0.101,1665.6,1665.5,1.07357433]
[1693500793467,0.101,1665.6,1665.5,0.59357433]
[1693500793660,0.101,1665.6,1665.4,3.008]
[1693500793819,0.101,1665.6,1665.5,2.9277433]
[1693500794025,0.101,1665.6,1665.5,6.4157433]
[1693500794434,3.103,1665.8,1665.5,6.4157433]
[1693500794640,3.103,1665.8,1665.7,3.008]
[1693500794838,0.101,1665.8,1665.7,3.008]
[1693500795443,3.101,1665.8,1665.7,3.008]
[1693500795642,3.101,1665.8,1665.5,3.008]
[1693500795883,3.103,1665.8,1665.5,3.008]
[1693500796030,3.0,1665.6,1665.5,3.008]
[1693500796227,3.103,1665.8,1665.5,5.9357433]
[1693500796472,3.103,1665.8,1665.7,3.008]
[1693500796670,3.101,1665.8,1665.7,3.008]
[1693500799243,3.0,1665.6,1665.5,3.008]
[1693500799450,3.103,1665.8,1665.5,3.008]
[1693500800450,3.0,1665.6,1665.5,3.008]
[1693500801292,3.103,1665.8,1665.5,5.9357433]
[1693500801471,3.0,1665.6,1665.5,3.008]
[1693500803752,3.0,1665.6,1665.0,9.24]
[1693500803753,3.0,1665.2,1665.0,3.008]
[1693500804154,0.002,1665.3,1665.0,3.008]
[1693500804679,3.0,1665.1,1665.0,3.008]
[1693500805365,3.0,1665.3,1665.0,3.008]
[1693500805784,3.0,1665.1,1665.0,3.008]
[1693500806293,1.51613772,1665.5,1665.0,3.008]
[1693500806294,3.0,1665.3,1665.0,3.008]
[1693500808507,3.0,1665.3,1665.0,3.60045337]
[1693500808694,0.60765509,1665.4,1665.2,3.008]
[1693500808695,0.002,1665.4,1665.2,3.008]
[1693500808899,0.002,1665.5,1665.2,3.60045337]
[1693500809194,0.002,1665.6,1665.5,3.008]
[1693500809397,3.60565509,1665.7,1665.5,3.008]
[1693500809583,3.60565509,1665.6,1665.0,3.008]
[1693500809793,0.60765509,1665.5,1665.0,3.008]
[1693500809992,0.002,1665.4,1665.1,0.59245337]
[1693500810299,0.002,1665.4,1665.3,3.008]
[1693500810504,0.60565509,1665.5,1665.3,3.008]
[1693500810803,3.0,1665.2,1665.0,3.008]
[1693500811210,3.0,1665.2,1664.8,3.03]
[1693500811508,3.0,1665.0,1664.9,0.022]
[1693500811802,3.0,1665.2,1665.0,6.016]
[1693500812013,3.60765509,1665.5,1665.0,6.60845337]
[1693500812180,0.002,1665.4,1665.3,3.008]
[1693500812392,3.60565509,1665.5,1665.3,3.008]
[1693500812587,0.91048263,1665.6,1665.3,3.008]
[1693500812588,1.51613772,1665.6,1665.3,3.008]
[1693500812789,0.002,1665.6,1665.5,3.008]
[1693500812984,1.61513772,1665.8,1665.5,6.016]
[1693500813212,1.61513772,1665.8,1665.7,3.008]
[1693500813678,1.00948263,1665.8,1665.7,3.008]
[1693500814197,2.22079281,1665.8,1665.7,3.008]
[1693500814995,0.7113129,1665.8,1665.7,3.008]
[1693500815976,3.0,1665.6,1665.5,3.008]
[1693500816218,3.0,1665.4,1665.3,3.008]
[1693500816584,3.6122988,1665.6,1665.3,3.008]
[1693500816914,3.0,1665.4,1665.3,3.008]
[1693500817496,3.6102988,1665.4,1665.0,3.008]
[1693500817694,0.002,1665.3,1665.0,3.008]
[1693500818094,3.0,1665.2,1665.0,3.008]
[1693500818711,3.0,1665.2,1665.0,6.016]
[1693500819597,3.0,1665.2,1665.0,3.008]
[1693500820122,3.6102988,1665.2,1665.0,3.008]
[1693500821326,1.51878143,1665.2,1665.0,3.008]
[1693500821627,3.6102988,1665.2,1665.0,3.008]
[1693500821794,3.6102988,1665.2,1665.0,3.3088]
[1693500822819,4.51878143,1665.2,1665.0,3.008]
[1693500823526,3.6102988,1665.2,1665.0,3.008]
[1693500823929,3.6102988,1665.2,1665.0,6.016]
[1693500824434,3.6102988,1665.2,1665.0,3.008]
[1693500824796,4.51878143,1665.2,1665.0,3.008]
[1693500825000,4.51878143,1665.2,1665.0,3.3088]
[1693500825226,3.6102988,1665.2,1665.0,3.3088]
[1693500826429,4.21331018,1665.4,1665.0,6.2365433]
[1693500826729,1.51413773,1665.5,1665.3,3.006]
[1693500826730,1.21131018,1665.5,1665.3,3.006]
[1693500827910,4.51413773,1665.6,1665.3,3.006]
[1693500827911,4.21131018,1665.6,1665.3,3.006]
[1693500828114,4.21131018,1665.6,1665.5,3.008]
[1693500828314,4.31571836,1665.6,1665.5,3.008]
[1693500829003,5.82985609,1665.6,1665.5,3.008]
[1693500829198,3.0,1665.4,1664.8,0.49612735]
[1693500829435,3.0,1665.2,1664.9,3.008]
[1693500829847,3.0,1665.0,1664.9,3.008]
[1693500832897,3.0,1664.8,1664.7,3.034]
[1693500833009,3.0,1664.8,1664.5,3.034]
[1693500833210,3.0,1664.6,1664.5,3.034]
[1693500833427,3.0,1664.8,1664.5,6.3194]
[1693500833632,4.22244994,1665.1,1664.5,3.92985337]
[1693500833835,4.22244994,1665.1,1664.9,3.008]
[1693500834014,3.0,1665.1,1664.9,3.008]
[1693500834215,4.22244994,1665.1,1664.9,3.008]
[1693500835023,3.0,1665.1,1664.9,3.008]
[1693500835224,1.52806242,1665.3,1665.0,3.008]
[1693500835225,1.22244994,1665.3,1665.0,3.008]
[1693500835449,1.22244994,1665.3,1665.2,3.008]
[1693500835641,5.1386331,1665.3,1665.2,3.008]
[1693500835943,4.32687662,1665.3,1665.2,3.008]
[1693500836854,0.91631009,1665.3,1665.2,3.008]
[1693500837075,4.32687497,1665.3,1665.2,3.008]
[1693500838047,1.32687497,1665.3,1665.2,3.008]
[1693500838254,2.13890447,1665.3,1665.2,3.008]
[1693500838423,0.61101078,1665.3,1665.2,3.008]
[1693500838927,4.22445447,1665.5,1665.2,3.008]
[1693500839134,3.00200453,1665.5,1665.4,3.008]
[1693500839433,3.00000453,1665.5,1665.4,3.008]
[1693500840456,4.53e-06,1665.5,1665.4,3.008]
[1693500840679,1.22244994,1665.6,1665.4,3.008]
[1693500840958,4.22244994,1665.5,1665.2,3.008]
[1693500841157,3.0,1665.2,1665.0,3.008]
[1693500841859,3.0,1665.2,1664.7,0.51067938]
[1693500841860,3.0,1665.0,1664.8,3.008]
[1693500843265,5.9277433,1665.0,1664.8,3.008]
[1693500843467,7.15019324,1665.0,1664.8,3.008]
[1693500843853,5.9277433,1665.0,1664.8,3.008]
[1693500844044,7.15019324,1665.0,1664.8,3.008]
[1693500845039,3.0,1664.3,1664.2,3.008]
[1693500845239,3.0,1664.3,1663.6,0.62506977]
[1693500845240,3.0,1664.3,1664.0,3.008]
[1693500846375,24.036,1664.2,1664.0,3.008]
[1693500846664,3.0,1664.1,1663.7,0.18174818]
[1693500846884,3.0,1663.9,1663.8,3.008]
[1693500849470,12.018,1664.0,1663.8,3.008]
[1693500849772,12.018,1664.0,1663.9,0.59245337]
[1693500849979,8.99042,1664.0,1663.9,1.07245337]
[1693500850281,8.99042,1664.0,1663.9,1.77327304]
[1693500850481,8.99042,1664.0,1663.9,0.59245337]
[1693500850786,8.99042,1664.0,1663.8,3.008]
[1693500850787,11.99042,1664.0,1663.8,3.008]
[1693500854379,8.99042,1664.0,1663.8,3.008]
[1693500854942,8.99042,1664.0,1663.5,3.01]
[1693500854943,3.0,1663.7,1663.5,3.01]
[1693500855147,3.0,1663.7,1663.5,3.008]
[1693500855578,5.9277433,1663.7,1663.4,0.002]
[1693500855779,3.0,1663.5,1663.4,0.002]
[1693500855967,3.0,1663.8,1663.3,3.108]
[1693500856179,3.0,1663.8,1663.7,3.008]
[1693500857456,11.99042,1663.8,1663.7,3.008]
[1693500858273,3.0,1663.6,1663.5,3.01]
[1693500858482,3.0,1663.6,1663.5,3.008]
[1693500859875,5.9277433,1663.6,1663.4,3.008]
[1693500860077,5.9277433,1663.6,1663.3,0.102]
[1693500860078,2.9277433,1663.5,1663.3,0.102]
[1693500860280,3.0,1663.4,1663.3,0.1]
[1693500860618,5.9277433,1663.4,1663.3,0.1]
[1693500861142,10.9277433,1663.4,1663.3,0.1]
[1693500862020,10.9277433,1663.4,1663.2,0.1]
[1693500862180,2.9277433,1663.3,1663.2,0.1]
[1693500862363,3.0,1663.4,1663.2,0.1]
[1693500862563,5.9277433,1663.4,1663.2,0.1]
[1693500862758,3.0,1663.6,1663.3,3.008]
[1693500862997,3.0,1663.6,1663.5,6.016]
[1693500863369,3.0,1663.6,1663.5,3.008]
[1693500863897,3.0,1663.6,1663.5,6.016]
[1693500864400,12.49884,1663.8,1663.5,6.016]
[1693500864559,12.49884,1663.8,1663.7,3.008]
[1693500864903,13.29995245,1663.8,1663.5,3.01]
[1693500865077,3.0,1663.6,1663.5,3.01]
[1693500865271,3.0,1663.6,1663.3,3.01]
[1693500865476,3.0,1663.4,1663.3,3.01]
[1693500865675,3.0,1663.4,1663.3,3.008]
[1693500866087,3.0,1663.7,1663.3,6.2465433]
[1693500866294,3.0,1663.7,1663.6,3.008]
[1693500866718,9.49884,1663.8,1663.6,3.008]
[1693500867017,3.0,1663.7,1663.6,3.008]
[1693500867227,3.0,1663.7,1663.5,3.008]
[1693500867883,9.49884,1663.8,1663.5,3.90145337]
[1693500868201,9.49884,1663.8,1663.7,3.008]
[1693500868572,12.49884,1663.8,1663.7,3.008]
[1693500870108,12.49884,1663.8,1663.5,3.01]
[1693500870403,3.0,1663.6,1663.5,0.002]
[1693500870584,3.0,1663.4,1663.3,3.01]
[1693500870784,3.0,1663.4,1663.3,3.008]
[1693500871003,3.0,1663.4,1663.3,3.3188]
[1693500871307,3.0,1663.6,1663.3,3.3188]
[1693500871472,3.0,1663.4,1663.3,0.002]
[1693500871677,3.0,1663.4,1663.3,3.008]
[1693500872092,14.9181633,1663.4,1663.3,3.008]
[1693500872975,11.99042,1663.4,1663.3,3.008]
[1693500873927,14.9181633,1663.4,1663.2,0.1]
[1693500874218,2.9277433,1663.3,1663.2,0.1]
[1693500876976,11.99042,1663.4,1663.2,0.1]
[1693500877307,14.9181633,1663.4,1663.2,0.1]
[1693500877603,2.9277433,1663.3,1663.2,0.1]
[1693500878384,11.99042,1663.4,1663.2,0.1]
[1693500878588,14.9181633,1663.4,1663.2,0.1]
[1693500879097,11.99042,1663.4,1663.2,0.1]
[1693500879296,3.0,1663.4,1663.3,3.008]
[1693500879706,15.024,1663.4,1663.3,3.008]
[1693500880072,12.024,1663.4,1663.3,3.008]
[1693500880408,15.024,1663.4,1663.3,3.008]
[1693500881778,2.72186,1663.4,1663.3,3.3188]
[1693500882175,3.0,1663.6,1663.5,3.008]
[1693500885779,3.50842,1663.8,1663.5,3.008]
[1693500885988,3.50842,1663.8,1663.7,3.008]
[1693500885989,0.50842,1663.8,1663.7,3.008]
[1693500886179,0.50842,1663.8,1663.7,3.3088]
[1693500886401,0.50842,1663.8,1663.7,3.008]
[1693500886601,3.0,1663.6,1663.5,3.01]
[1693500886811,3.0,1663.6,1663.5,3.008]
[1693500887120,3.0,1663.4,1663.3,3.01]
[1693500887284,3.0,1663.4,1663.3,3.008]
[1693500888410,3.0,1663.6,1663.3,3.3188]
[1693500888615,2.95,1663.6,1663.5,3.008]
[1693500890686,2.95,1663.4,1663.3,3.01]
[1693500890883,2.95,1663.4,1663.2,0.1]
[1693500892051,2.9277433,1663.3,1663.2,0.1]
[1693500892530,3.1685973,1663.3,1663.2,0.1]
[1693500893234,0.240854,1663.3,1663.2,0.1]
[1693500893429,2.95,1663.4,1663.2,0.1]
[1693500894203,2.95,1663.4,1663.3,3.008]
[1693500894398,2.95,1663.6,1663.3,3.008]
[1693500894639,2.95,1663.4,1663.3,3.3208]
[1693500894842,2.95,1663.4,1663.3,3.008]
[1693500896125,5.8777433,1663.4,1663.3,3.008]
[1693500896639,2.95,1663.4,1663.3,3.008]
[1693500898105,2.95,1663.6,1663.3,3.008]
[1693500898304,2.95,1663.6,1663.3,3.01]
[1693500898504,2.95,1663.6,1663.3,3.321]
[1693500899006,2.95,1663.6,1663.3,3.01]
[1693500899738,2.95,1663.6,1663.5,3.008]
[1693500900413,2.95,1663.4,1663.3,3.01]
[1693500900613,2.95,1663.4,1663.2,0.1]
[1693500900846,2.95,1663.4,1663.2,3.108]
[1693500901018,5.8777433,1663.6,1663.2,3.108]
[1693500901217,2.948,1663.3,1663.2,3.108]
[1693500902038,2.948,1663.3,1663.2,0.1]
[1693500903147,2.948,1663.4,1663.2,3.108]
[1693500903325,2.948,1663.4,1663.3,3.008]
[1693500903733,2.948,1663.4,1663.3,3.3188]
[1693500905842,5.8757433,1663.4,1663.2,0.1]
[1693500906062,2.9277433,1663.3,1663.2,0.1]
[1693500906648,3.1686163,1663.3,1663.2,0.1]
[1693500907145,2.9277433,1663.3,1663.2,0.1]
[1693500907721,2.948,1663.4,1663.2,0.1]
[1693500907905,3.650608,1663.2,1663.1,0.102]
[1693500908113,3.650608,1663.2,1663.1,0.1]
[1693500908339,0.702608,1663.2,1663.1,3.108]
[1693500908521,3.650608,1663.2,1663.1,3.108]
[1693500909223,6.5783513,1663.2,1663.1,0.1]
[1693500909619,3.650608,1663.2,1663.1,0.1]
[1693500910348,6.5783513,1663.2,1663.1,0.1]
[1693500911048,0.702608,1663.2,1663.1,3.108]
[1693500911211,3.650608,1663.2,1663.1,3.108]
[1693500911418,3.650608,1663.2,1663.1,0.1]
[1693500912239,6.5783513,1663.2,1663.1,0.1]
[1693500912829,6.5783513,1663.2,1663.0,0.1]
[1693500912830,5.0,1663.1,1663.0,0.1]
[1693500913137,8.53680721,1663.1,1663.0,0.1]
[1693500913651,3.53680721,1663.1,1663.0,0.1]
[1693500913813,3.53680721,1663.1,1663.0,3.108]
[1693500913814,0.488927,1663.1,1663.0,3.108]
[1693500914015,3.650608,1663.2,1663.0,3.108]
[1693500914416,3.650608,1663.2,1663.0,0.1]
[1693500915054,6.5783513,1663.2,1663.0,0.1]
[1693500915235,6.5783513,1663.2,1663.0,3.108]
[1693500915236,3.650608,1663.2,1663.0,3.108]
[1693500916253,2.9277433,1663.1,1663.0,3.108]
[1693500916416,2.9277433,1663.1,1663.0,0.1]
[1693500918248,3.650608,1663.2,1663.0,0.1]
[1693500918446,6.5783513,1663.2,1663.0,0.1]
[1693500918650,3.650608,1663.2,1663.0,3.108]
[1693500921120,3.650608,1663.2,1663.0,3.419]
[1693500921616,0.702608,1663.2,1663.0,6.427]
[1693500922227,0.702608,1663.2,1663.0,9.3547433]
[1693500922425,0.702608,1663.2,1663.1,3.48]
[1693500923631,2.948,1663.6,1663.1,6.4077433]
[1693500923831,4.06583419,1663.8,1663.5,3.008]
[1693500924148,3.45642,1663.8,1663.5,3.01]
[1693500924520,0.50842,1663.8,1663.5,3.01]
[1693500924717,0.50842,1663.8,1663.7,3.008]
[1693500926023,2.948,1663.7,1663.5,3.01]
[1693500926231,2.948,1663.7,1663.4,0.002]
[1693500926757,2.948,1663.5,1663.4,0.002]
[1693500927060,2.948,1663.5,1663.2,0.002]
[1693500927061,2.948,1663.3,1663.2,0.002]
[1693500927368,2.948,1663.3,1663.0,0.1]
[1693500927369,2.948,1663.3,1663.0,0.102]
[1693500927523,2.948,1663.3,1663.0,0.413]
[1693500927724,2.948,1663.3,1663.1,3.008]
[1693500928136,5.8757433,1663.3,1663.1,3.008]
[1693500928333,2.948,1663.3,1663.0,0.102]
[1693500928539,5.8757433,1663.3,1663.0,0.102]
[1693500929243,2.948,1663.1,1663.0,0.102]
[1693500929562,2.948,1663.1,1663.0,0.1]
[1693500930932,5.8757433,1663.1,1663.0,0.1]
[1693500932664,9.48559815,1663.1,1663.0,0.1]
[1693500933332,10.40020266,1663.1,1663.0,0.1]
[1693500933596,9.79052557,1663.1,1663.0,0.1]
[1693500933746,10.40020219,1663.1,1663.0,0.1]
[1693500933934,9.48541992,1663.1,1663.0,0.1]
[1693500934568,5.8757433,1663.1,1663.0,0.1]
[1693500934779,17.9017433,1663.1,1663.0,0.1]
[1693500936140,19.42620219,1663.1,1663.0,0.1]
[1693500936340,18.81652557,1663.1,1663.0,0.1]
[1693500936542,18.51089823,1663.1,1663.0,0.1]
[1693500937146,4.948,1662.9,1662.8,0.102]
[1693500937356,19.9017433,1662.9,1662.8,0.1]
[1693500937548,20.51083375,1662.9,1662.8,0.1]
[1693500937867,19.9017433,1662.9,1662.8,0.1]
[1693500938068,20.51083375,1662.9,1662.8,0.1]
[1693500938281,20.51083375,1662.9,1662.6,0.002]
[1693500938282,4.948,1662.7,1662.6,0.002]
[1693500938569,2.946,1662.4,1662.3,0.1]
[1693500938734,17.8997433,1662.4,1662.3,0.1]
[1693500939175,12.026,1662.4,1662.3,3.108]
[1693500939338,14.972,1662.4,1662.3,3.108]
[1693500939537,14.972,1662.4,1662.3,0.1]
[1693500940065,14.972,1662.4,1662.3,3.108]
[1693500940266,12.026,1662.4,1662.3,3.108]
[1693500941490,14.972,1662.4,1662.3,3.108]
[1693500941996,14.972,1662.4,1662.3,3.4288]
[1693500942295,12.026,1662.4,1662.3,3.4288]
[1693500942660,11.1316,1662.4,1662.3,9.3565433]
[1693500942861,9.8443,1662.4,1662.3,9.8365433]
[1693500943797,9.8443,1662.4,1662.3,6.9088]
[1693500944167,9.8443,1662.4,1662.3,9.8365433]
[1693500945267,2.946,1663.0,1662.5,3.008]
[1693500945462,2.946,1663.0,1662.9,3.008]
[1693500945662,2.946,1663.0,1662.7,3.008]
[1693500946067,2.946,1662.8,1662.7,3.008]
[1693500946395,2.946,1662.8,1662.5,3.01]
[1693500946695,2.946,1662.6,1662.5,3.01]
[1693500946895,2.946,1662.6,1662.5,3.008]
[1693500947215,2.946,1662.6,1662.5,3.3088]
[1693500947613,2.946,1662.6,1662.5,3.008]